fUSD/lending_fUSD_20251108
["ID","MTS","AMOUNT","RATE_DAILY","PERIOD"]
[393390191,1762572640082,-500.0,0.00017899,2]
[393390192,1762572640091,-296.92453983,0.00017899,2]
[393390193,1762572640101,-150.0,0.00017899,2]
[393390194,1762572640112,-150.0,0.00017899,2]
[393390195,1762572640122,-500.0,0.00017899,2]
[393390196,1762572640132,-150.0,0.00017899,2]
[393390198,1762572640143,-150.0,0.00017899,2]
[393390199,1762572640152,-150.0,0.00017899,2]
[393390200,1762572640162,-150.0,0.00017899,2]
[393390201,1762572640171,-153.00042729,0.00017899,2]
[393390202,1762572640370,-500.0,0.00017899,2]
[393390203,1762572640381,-150.0,0.00017899,2]
[393390204,1762572640391,-1300.0,0.000179,6]
[393390205,1762572640403,-300.0,0.00017906,2]
[393390206,1762572640413,-1274.0,0.00017912,2]
[393390207,1762572640423,-233.44224384,0.00017916,2]
[393390208,1762572640432,-239.99488842,0.00017916,2]
[393390209,1762572640442,-6119.24790952,0.00017916,2]
[393390210,1762572640452,-201.36440688,0.00017916,2]
[393390211,1762572640462,-198.05750898,0.00017916,2]
[393390212,1762572640471,-500.0,0.00017973,2]
[393390213,1762572640481,-500.41383408,0.00017973,2]
[393390214,1762572640491,-501.04587818,0.00017973,2]
[393390215,1762572640501,-500.48756582,0.00017973,2]
[393390216,1762572640512,-500.0,0.00017973,2]
[393390217,1762572640522,-500.39414892,0.00017973,2]
[393390218,1762572640535,-501.39454671,0.00017973,2]
[393390219,1762572640545,-501.50530848,0.00017973,2]
[393390220,1762572640555,-386.48130404,0.00017973,2]
[393390221,1762572640564,-432.78038,0.00017973,2]
[393390222,1762572640575,-155.25322022,0.00017973,2]
[393390223,1762572640585,-280.37541257,0.00017973,2]
[393390224,1762572640594,-505.85898911,0.00017973,2]
[393390225,1762572640603,-500.0,0.00017973,2]
[393390226,1762572640616,-235.33606138,0.00017973,2]
[393390227,1762572640625,-5348.43921893,0.00017973,2]
[393390228,1762572640634,-181.13466542,0.0001799,2]
[393390229,1762572640642,-181.13466542,0.0001799,2]
[393390230,1762572640653,-181.13466542,0.0001799,2]
[393390231,1762572640662,-500.0,0.00017999,2]
[393390232,1762572640672,-380.77293015,0.00017999,2]
[393390233,1762572640682,-173.94073015,0.00017999,2]
[393390235,1762572640697,-500.0,0.00017999,2]
[393390236,1762572640707,-560.95553394,0.00017999,2]
[393390237,1762572640716,-594.0422771,0.00017999,2]
[393390238,1762572640726,-500.0,0.00017999,2]
[393390239,1762572640735,-500.0,0.00017999,2]
[393390240,1762572640744,-500.0,0.00017999,2]
[393390241,1762572640754,-500.0,0.00017999,2]
[393390242,1762572640764,-304.71674308,0.00017999,2]
[393390243,1762572640775,-1592761.13088046,0.00018,2]
[393390244,1762572641225,-1.7e-07,0.00018,2]
[393390245,1762572641237,-5129938.75586595,0.00018,2]
[393390246,1762572641253,-4302.87,0.00018,2]
[393390247,1762572641265,-408.73775035,0.00018,2]
[393390248,1762572641277,-1032.3911012,0.00018,2]
[393390249,1762572642073,151.0,0.00015757,2]
[393390270,1762572643422,-299.91221663,0.00015922,2]
[393390297,1762572647204,-19.61153348,0.00015922,2]
[393390299,1762572647214,-265.54478502,0.00015931,2]
[393390313,1762572660558,-151.0,0.00015851,2]
[393390314,1762572660583,-53.97896509,0.00015931,2]
[393390315,1762572660605,-301.34115845,0.0001594,2]
[393390316,1762572661994,-18.18259166,0.0001594,2]
[393390317,1762572662018,-171.76167588,0.00015948,2]
[393390318,1762572780637,-256.27784071,0.00015844,2]
[393390319,1762572825552,-151.0,0.00015844,2]
[393390320,1762572825575,-76.01250244,0.00015844,2]
[393390321,1762572856160,569.18112473,0.00015753,2]
[393390322,1762572856188,543.08966467,0.00015753,2]
[393390323,1762572975534,-104.96732554,0.00015753,2]
[393390324,1762572975559,-181.52642324,0.00015792,2]
[393390331,1762573269368,2000.0,0.0003906,30]
[393390333,1762573289001,2000.0,0.0003906,30]
[393390335,1762573308521,2000.0,0.0003906,30]
[393390337,1762573328090,2000.0,0.0003906,30]
[393390338,1762573335583,-151.0,0.00015664,2]
[393390339,1762573335605,-3.74173552,0.00015677,2]
[393390340,1762573337301,-147.25826448,0.00015677,2]
[393390341,1762573337324,-19.76432594,0.00015685,2]
[393390342,1762573347896,2000.0,0.0003906,30]
[393390343,1762573367342,2000.0,0.0003906,30]
[393390344,1762573389355,2000.0,0.0003906,30]
[393390346,1762573408353,2000.0,0.00039064,30]
[393390348,1762573501696,216.0,0.00039064,120]
[393390349,1762573545565,-151.0,0.00015623,2]
[393390350,1762573545588,-66.66273486,0.00015632,2]
[393390351,1762573547017,-84.33726514,0.00015632,2]
[393390352,1762573547040,-141.48019924,0.00015646,2]
[393390353,1762573550158,-151.0,0.00015613,2]
[393390354,1762573550182,-9.51980076,0.00015646,2]
[393390355,1762573550205,-126.83183531,0.00015648,2]
[393390356,1762573581601,416.79,0.00013699,2]
[393390358,1762573635551,-296.94196024,0.00015548,2]
[393390361,1762573725584,-164.61476327,0.0001547,2]
[393390362,1762573726548,1702.53,8.244e-05,2]
[393390363,1762573726788,1702.53,8.66e-05,2]
[393390364,1762573726985,178.15,9.077e-05,2]
[393390365,1762573727008,1524.38,9.077e-05,2]
[393390366,1762573727189,1702.53,9.494e-05,2]
[393390367,1762573727400,773.09,9.911e-05,2]
[393390368,1762573727425,929.44,9.911e-05,2]
[393390369,1762573727603,1702.53,0.00010328,2]
[393390370,1762573727914,1368.03,0.00010745,2]
[393390371,1762573727938,334.5,0.00010745,2]
[393390372,1762573728141,1702.53,0.00011162,2]
[393390373,1762573728359,1702.53,0.00011578,2]
[393390374,1762573728570,260.44,0.00011995,2]
[393390375,1762573728599,1442.09,0.00011995,2]
[393390376,1762573728790,1702.53,0.00012412,2]
[393390377,1762573729003,855.38,0.00012829,2]
[393390378,1762573729028,847.15,0.00012829,2]
[393390379,1762573729191,1702.53,0.00013246,2]
[393390380,1762573729379,1450.32,0.00013663,2]
[393390381,1762573729404,252.21,0.00013663,2]
[393390382,1762573729570,1702.53,0.00014079,2]
[393390383,1762573729765,1702.53,0.00014496,2]
[393390384,1762573729974,342.73,0.00014913,2]
[393390385,1762573729998,1359.8,0.00014913,2]
[393390386,1762573740537,-303.92547475,0.0001533,2]
[393390387,1762573744326,-216.1147564,0.0001533,2]
[393390388,1762573749122,-1182.48976885,0.0001533,2]
[393390389,1762573749147,-195.0,0.000154,2]
[393390390,1762573749172,-7.75523673,0.0001547,2]
[393390391,1762573749194,-24.8223657,0.00015548,2]
[393390392,1762573749218,-318.47357676,0.00015609,2]
[393390393,1762573749241,-195.0,0.00015654,2]
[393390394,1762573749265,-1702.53,0.00015747,2]
[393390395,1762573749287,-500.0,0.00015831,2]
[393390396,1762573749310,-160.0,0.00015841,2]
[393390397,1762573749333,-699.97236596,0.00016076,2]
[393390398,1762573815566,-178.8903808,0.00015976,2]
[393390399,1762573815650,150.0,0.00016384,120]
[393390400,1762573817036,-271.48907211,0.00015976,2]
[393390401,1762573820293,-173.36051182,0.00015976,2]
[393390402,1762573822395,-182.92101406,0.00015976,2]
[393390418,1762573831447,-18.43682121,0.00015976,2]
[393390419,1762573831457,-1172.0,0.00016076,2]
[393390420,1762573831467,-300.0,0.00016076,2]
[393390421,1762573831477,-1200.0,0.00016076,2]
[393390423,1762573831487,-195.0,0.00016076,2]
[393390425,1762573831496,-1568.48,0.00016077,2]
[393390427,1762573831505,-4418.67,0.00016077,2]
[393390428,1762573831515,-1702.53,0.00016164,2]
[393390429,1762573831526,-594.01,0.00016198,2]
[393390430,1762573831536,-4433.35,0.00016227,2]
[393390431,1762573831546,-1000.0,0.00016294,2]
[393390432,1762573831556,-150.0,0.00016384,2]
[393390433,1762573831566,-205.0,0.00016432,2]
[393390434,1762573831575,-200.0,0.00016714,2]
[393390435,1762573831585,-195.0,0.00016863,2]
[393390436,1762573831595,-252.09600473,0.00016863,2]
[393390437,1762573831605,-151.0,0.00016912,2]
[393390438,1762573831615,-151.0,0.00016912,2]
[393390439,1762573831624,-151.0,0.00016912,2]
[393390440,1762573831634,-151.0,0.00016912,2]
[393390441,1762573831644,-151.0,0.00016912,2]
[393390442,1762573831653,-151.0,0.00016912,2]
[393390443,1762573831663,-151.0,0.00016912,2]
[393390444,1762573831672,-271.54311407,0.00016912,2]
[393390445,1762573831682,-1395.08,0.00017041,2]
[393390446,1762573831692,-250.0,0.00017103,2]
[393390447,1762573831701,-195.0,0.00017127,2]
[393390448,1762573831711,-250.0,0.00017127,2]
[393390449,1762573831720,-184.74,0.00017262,2]
[393390450,1762573831730,-205.0,0.00017345,2]
[393390451,1762573831739,-1046.7168,0.000174,2]
[393390452,1762573831749,-393.03422484,0.000174,2]
[393390453,1762573831758,-10842.72022678,0.000174,2]
[393390455,1762573831768,-2500.0,0.000174,2]
[393390458,1762573831778,-15465.80630327,0.000174,2]
[393390460,1762573831788,-1454.00216637,0.000174,2]
[393390462,1762573831797,-1454.00216637,0.000174,2]
[393390464,1762573831807,-168.0,0.00017402,2]
[393390466,1762573831817,-2428.99024557,0.00017468,2]
[393390468,1762573831827,-500.0,0.00017473,2]
[393390470,1762573831836,-503.49016557,0.00017473,2]
[393390472,1762573831846,-500.0,0.00017473,2]
[393390474,1762573831856,-606.98844194,0.00017473,2]
[393390476,1762573831865,-500.0,0.00017473,2]
[393390478,1762573831875,-504.75986535,0.00017473,2]
[393390481,1762573831885,-168.63429021,0.00017473,2]
[393390483,1762573831898,-502.57904002,0.00017473,2]
[393390485,1762573831907,-155.56479245,0.00017499,2]
[393390487,1762573831917,-353.25578801,0.00017499,2]
[393390489,1762573831927,-500.0,0.00017499,2]
[393390491,1762573831937,-500.0,0.00017499,2]
[393390493,1762573831946,-500.0,0.00017499,2]
[393390495,1762573831955,-500.0,0.00017499,2]
[393390497,1762573831967,-500.0,0.00017499,2]
[393390498,1762573831977,-500.0,0.00017499,2]
[393390499,1762573831987,-500.0,0.00017499,2]
[393390500,1762573831996,-500.0,0.00017499,2]
[393390501,1762573832005,-500.0,0.00017499,2]
[393390502,1762573832015,-500.0,0.00017499,2]
[393390503,1762573832025,-500.0,0.00017499,2]
[393390504,1762573832035,-299.24110923,0.00017499,2]
[393390505,1762573832044,-500.0,0.00017499,2]
[393390506,1762573832054,-500.0,0.00017499,2]
[393390507,1762573832065,-500.0,0.00017499,2]
[393390508,1762573832075,-500.0,0.00017499,2]
[393390509,1762573832085,-522.75559322,0.00017499,2]
[393390510,1762573832095,-500.0,0.00017499,2]
[393390511,1762573832105,-498.152,0.00017499,2]
[393390512,1762573832115,-768.18,0.00017499,2]
[393390513,1762573832124,-500.0,0.00017499,2]
[393390514,1762573832134,-500.0,0.00017499,2]
[393390515,1762573832144,-500.0,0.00017499,2]
[393390516,1762573832153,-500.0,0.00017499,2]
[393390517,1762573832163,-184.33769493,0.00017499,2]
[393390518,1762573832173,-500.0,0.00017499,2]
[393390519,1762573832182,-500.0,0.00017499,2]
[393390520,1762573832192,-500.0,0.00017499,2]
[393390521,1762573832203,-500.0,0.00017499,2]
[393390522,1762573832213,-222549.6542754,0.000175,2]
[393390523,1762573832226,-25558.11127414,0.000175,2]
[393390524,1762573832237,-663.50032389,0.000175,2]
[393390526,1762573837434,-229.09145597,0.000174,2]
[393390527,1762573837444,-10652.54166448,0.000175,2]
[393390528,1762573837457,-2715.53547782,0.000175,2]
[393390529,1762573837489,-157860.65698427,0.000175,2]
[393390530,1762573837499,-2000.0,0.000175,6]
[393390531,1762573837509,-500.0,0.00017506,2]
[393390532,1762573837518,-1205.69,0.00017507,2]
[393390533,1762573837529,-331.0,0.00017575,2]
[393390534,1762573837540,-168.0,0.00017597,2]
[393390535,1762573837550,-500.0,0.00017599,2]
[393390536,1762573837559,-4100.0,0.000176,6]
[393390537,1762573837569,-206.8780462,0.00017654,2]
[393390538,1762573837579,-1680.0,0.00017663,2]
[393390539,1762573837588,-620.07204538,0.00017684,2]
[393390540,1762573837598,-250.0,0.00017684,2]
[393390541,1762573837608,-195.0,0.00017684,2]
[393390542,1762573837617,-300.62272235,0.00017684,2]
[393390543,1762573837627,-6200.0,0.000177,6]
[393390544,1762573837637,-254.97811485,0.00017717,2]
[393390545,1762573837646,-3186.41,0.00017728,2]
[393390546,1762573837656,-9999.99,0.00017728,2]
[393390547,1762573837666,-150.99,0.00017728,2]
[393390548,1762573837676,-9999.99,0.00017728,2]
[393390549,1762573837685,-9999.99,0.00017728,2]
[393390550,1762573837695,-906.58,0.00017728,2]
[393390551,1762573837706,-585.65,0.00017728,2]
[393390552,1762573837715,-9999.99,0.00017728,2]
[393390553,1762573837725,-768.18,0.00017773,2]
[393390554,1762573837735,-5000.0,0.000178,2]
[393390555,1762573837745,-8200.0,0.000178,6]
[393390557,1762573837754,-746.44860371,0.00017805,2]
[393390559,1762573837764,-153.88,0.00017898,2]
[393390561,1762573837773,-266.96082948,0.00017899,2]
[393390563,1762573837783,-150.0,0.00017899,2]
[393390565,1762573837792,-213.09177718,0.00017899,2]
[393390567,1762573837801,-150.0,0.00017899,2]
[393390569,1762573837811,-227.45604997,0.00017899,2]
[393390571,1762573837820,-150.0,0.00017899,2]
[393390573,1762573837830,-150.0,0.00017899,2]
[393390574,1762573837839,-150.0,0.00017899,2]
[393390575,1762573837848,-150.0,0.00017899,2]
[393390576,1762573837858,-158.74312142,0.00017899,2]
[393390577,1762573837868,-159.17244427,0.00017899,2]
[393390578,1762573837877,-156.38165633,0.00017899,2]
[393390579,1762573837887,-150.0,0.00017899,2]
[393390580,1762573837900,-155.28552746,0.00017899,2]
[393390581,1762573837910,-296.92453983,0.00017899,2]
[393390582,1762573837920,-150.0,0.00017899,2]
[393390583,1762573837929,-150.0,0.00017899,2]
[393390584,1762573837939,-500.0,0.00017899,2]
[393390585,1762573837950,-150.0,0.00017899,2]
[393390586,1762573837959,-150.0,0.00017899,2]
[393390587,1762573837972,-150.0,0.00017899,2]
[393390588,1762573837982,-150.0,0.00017899,2]
[393390589,1762573837991,-153.00042729,0.00017899,2]
[393390590,1762573838000,-218.97846183,0.00017899,2]
[393390591,1762573838010,-500.0,0.00017899,2]
[393390592,1762573838020,-150.0,0.00017899,2]
[393390593,1762573838030,-500.0,0.00017899,2]
[393390594,1762573838039,-500.0,0.00017899,2]
[393390595,1762573838049,-150.0,0.00017899,2]
[393390596,1762573838059,-150.0,0.00017899,2]
[393390597,1762573838069,-150.0,0.00017899,2]
[393390598,1762573838078,-150.0,0.00017899,2]
[393390599,1762573838088,-150.0,0.00017899,2]
[393390600,1762573838098,-500.0,0.00017899,2]
[393390601,1762573838108,-150.4240917,0.00017899,2]
[393390602,1762573838118,-150.0,0.00017899,2]
[393390603,1762573838128,-500.0,0.00017899,2]
[393390604,1762573838138,-500.0,0.00017899,2]
[393390605,1762573838149,-500.0,0.00017899,2]
[393390606,1762573838158,-150.0,0.00017899,2]
[393390607,1762573838169,-500.0,0.00017899,2]
[393390608,1762573838179,-500.0,0.00017899,2]
[393390609,1762573838189,-845.50868336,0.000179,2]
[393390610,1762573838199,-10300.0,0.000179,6]
[393390611,1762573838209,-168.0,0.00017931,2]
[393390612,1762573838219,-500.0,0.00017973,2]
[393390613,1762573838229,-379.94568324,0.00017973,2]
[393390614,1762573838239,-503.66483378,0.00017973,2]
[393390615,1762573838249,-330.9236167,0.00017973,2]
[393390616,1762573838259,-500.0,0.00017973,2]
[393390617,1762573838269,-432.78038,0.00017973,2]
[393390618,1762573838279,-427.18736711,0.00017973,2]
[393390619,1762573838290,-501.2123909,0.00017973,2]
[393390620,1762573838300,-155.25322022,0.00017973,2]
[393390621,1762573838311,-235.33606138,0.00017973,2]
[393390622,1762573838321,-500.0,0.00017973,2]
[393390623,1762573838331,-500.0,0.00017973,2]
[393390624,1762573838341,-501.39454671,0.00017973,2]
[393390625,1762573838350,-501.50530848,0.00017973,2]
[393390626,1762573838360,-386.48130404,0.00017973,2]
[393390627,1762573838370,-500.48756582,0.00017973,2]
[393390628,1762573838380,-500.0,0.00017973,2]
[393390629,1762573838390,-500.39414892,0.00017973,2]
[393390630,1762573838401,-500.41383408,0.00017973,2]
[393390631,1762573838411,-501.04587818,0.00017973,2]
[393390632,1762573838420,-280.37541257,0.00017973,2]
[393390633,1762573838430,-505.85898911,0.00017973,2]
[393390634,1762573838440,-181.13466542,0.0001799,2]
[393390635,1762573838450,-181.13466542,0.0001799,2]
[393390636,1762573838460,-151.0,0.00017997,2]
[393390637,1762573838470,-151.0,0.00017997,2]
[393390638,1762573838479,-151.0,0.00017997,2]
[393390639,1762573838490,-300.0,0.00017999,2]
[393390640,1762573838499,-675.63641778,0.00017999,2]
[393390641,1762573838510,-11039.8168775,0.00017999,2]
[393390642,1762573838519,-2184.0603433,0.00017999,2]
[393390643,1762573838530,-300.0,0.00017999,2]
[393390644,1762573838539,-228.41630804,0.00017999,2]
[393390645,1762573838549,-178.21268313,0.00017999,2]
[393390646,1762573838559,-168.28666018,0.00017999,2]
[393390647,1762573838569,-1815597.24227349,0.00018,2]
[393390665,1762573839427,-1616.14539135,0.00018,2]
[393390672,1762573839481,-354.07823331,0.00018,2]
[393390678,1762573839540,-314.123928,0.00018,2]
[393390681,1762573839553,-1897.74363316,0.00018,2]
[393390685,1762573839590,-12489.99574268,0.00018,2]
[393390692,1762573839646,-565.51,0.00018,2]
[393390717,1762573839875,-260321.70892561,0.00018,2]
[393390720,1762573839892,-1680.34482032,0.00018,2]
[393391040,1762573843035,-497.55268124,0.00017499,2]
[393391202,1762573846012,-2.44731876,0.00017499,2]
[393391203,1762573846023,-500.0,0.00017499,2]
[393391204,1762573846034,-493.83826796,0.00017499,2]
[393391205,1762573846045,-5229.86698684,0.00018,2]
[393391206,1762573846408,-428.14468468,0.00018,2]
[393391211,1762573856051,584.87,0.00017499,2]
[393391212,1762573861271,300.0,0.00017999,2]
[393391213,1762573862827,500.0,0.00017499,2]
[393391214,1762573862861,500.0,0.00017499,2]
[393391215,1762573862903,500.0,0.00017499,2]
[393391216,1762573862937,500.0,0.00017499,2]
[393391217,1762573862970,500.0,0.00017499,2]
[393391218,1762573863014,500.0,0.00017499,2]
[393391219,1762573863051,300.0,0.00017999,2]
[393391220,1762573863086,545.31274332,0.00017499,2]
[393391221,1762573863124,500.0,0.00017499,2]
[393391222,1762573863236,500.0,0.00017499,2]
[393391223,1762573863289,500.0,0.00017499,2]
[393391224,1762573863349,500.0,0.00017499,2]
[393391225,1762573867529,500.0,0.00017973,2]
[393391226,1762573873777,-10683.81725668,0.00018,2]
[393391227,1762574050556,500.0,0.00039066,120]
[393391232,1762574176153,500.0,0.00039066,120]
[393391233,1762574176769,500.0,0.00039066,120]
[393391234,1762574176811,500.0,0.00039066,120]
[393391235,1762574176882,623.75697747,0.00039066,120]
[393391260,1762574526237,750.0,0.00039048,40]
[393391261,1762574608030,789.1910934,0.00039049,120]
[393391263,1762574730622,-479.94565248,0.00016438,2]
[393391264,1762574732085,-151.0,0.00016438,2]
[393391265,1762574734730,-114.78434752,0.00016438,2]
[393391266,1762574734757,-66.52201426,0.00016813,2]
[393391267,1762574761096,-107.63489974,0.00016813,2]
[393391268,1762574761119,-180.40070945,0.00016898,2]
[393391269,1762574805572,-129.59929055,0.00016898,2]
[393391270,1762574805596,-169.94369756,0.00016957,2]
[393391271,1762574807609,-151.0,0.00016957,2]
[393391272,1762574810858,-207.39304278,0.00016957,2]
[393391273,1762574820813,-150.0,0.00016919,2]
[393391274,1762574820835,-183.61,0.00016957,2]
[393391275,1762574837276,-231.85715541,0.00016957,2]
[393391276,1762574838831,-184.34202399,0.00016957,2]
[393391277,1762574841396,-173.29557802,0.00016957,2]
[393391278,1762574850568,-166.39,0.00016957,2]
[393391279,1762574865551,-151.0,0.00016957,2]
[393391280,1762574867452,-444.03740239,0.00016957,2]
[393391281,1762574870190,-320.573624,0.00016957,2]
[393391282,1762574872904,-250.0,0.00016957,2]
[393391283,1762574880542,-117.55747585,0.00016957,2]
[393391284,1762574880565,-33.44252415,0.00016982,2]
[393391285,1762574941108,-203.51584892,0.00016982,2]
[393391286,1762574943580,-63.04162693,0.00016982,2]
[393391287,1762574943611,-232.7216801,0.00016982,2]
[393391288,1762574971669,-156.47157791,0.00016982,2]
[393391312,1762575031597,-999.0,0.00016872,3]
[393391314,1762575031607,-1200.0,0.00016982,2]
[393391315,1762575031617,-1200.0,0.00016982,2]
[393391317,1762575031627,-7263.41,0.00016983,2]
[393391319,1762575031637,-250.0,0.00016984,2]
[393391321,1762575031652,-300.0,0.00017031,2]
[393391323,1762575031662,-1329.39,0.00017032,2]
[393391324,1762575031671,-500.0,0.00017084,2]
[393391326,1762575031680,-366.87694461,0.000171,2]
[393391328,1762575031690,-199.65294623,0.000171,2]
[393391330,1762575031700,-8610.98,0.00017103,2]
[393391332,1762575031711,-415.53259,0.000175,2]
[393391333,1762575031720,-746.44860372,0.00017689,2]
[393391335,1762575031730,-500.0,0.000177,6]
[393391337,1762575031739,-1700.0,0.000177,6]
[393391338,1762575031749,-237.23187751,0.00017711,2]
[393391339,1762575031758,-550.0,0.00017727,2]
[393391340,1762575031768,-7552.58,0.00017728,2]
[393391341,1762575031778,-9999.99,0.00017728,2]
[393391342,1762575031787,-150.99,0.00017728,2]
[393391343,1762575031797,-221.8861932,0.00017745,2]
[393391344,1762575031807,-749.07,0.000178,2]
[393391345,1762575031817,-10543.75265137,0.000178,2]
[393391346,1762575031828,-5000.0,0.000178,2]
[393391347,1762575031838,-370.29556341,0.000178,2]
[393391348,1762575031848,-374.85551877,0.000178,2]
[393391349,1762575031858,-14879.67567466,0.000178,2]
[393391350,1762575031868,-1000.0,0.000178,6]
[393391351,1762575031877,-3500.0,0.000178,6]
[393391352,1762575031887,-2010.31729,0.0001782,2]
[393391353,1762575031897,-1874.80921206,0.0001783,2]
[393391354,1762575031908,-222.76706916,0.00017873,2]
[393391355,1762575031918,-339.76168497,0.00017873,2]
[393391356,1762575031928,-647.04253758,0.00017873,2]
[393391357,1762575031938,-524.46659852,0.00017873,2]
[393391358,1762575031947,-1377.0,0.00017897,2]
[393391359,1762575031957,-500.0,0.00017899,2]
[393391360,1762575031967,-500.0,0.00017899,2]
[393391362,1762575031976,-500.0,0.00017899,2]
[393391364,1762575031986,-500.0,0.00017899,2]
[393391366,1762575031995,-500.0,0.00017899,2]
[393391369,1762575032005,-500.0,0.00017899,2]
[393391371,1762575032019,-500.0,0.00017899,2]
[393391373,1762575032029,-536.73094458,0.00017899,2]
[393391374,1762575032038,-500.0,0.00017899,2]
[393391375,1762575032048,-500.0,0.00017899,2]
[393391376,1762575032057,-153.25016852,0.00017899,2]
[393391377,1762575032067,-500.0,0.00017899,2]
[393391378,1762575032076,-585.48720622,0.00017899,2]
[393391379,1762575032086,-500.0,0.00017899,2]
[393391380,1762575032095,-500.0,0.00017899,2]
[393391381,1762575032105,-500.0,0.00017899,2]
[393391382,1762575032114,-500.0,0.00017899,2]
[393391383,1762575032123,-500.0,0.00017899,2]
[393391384,1762575032134,-500.0,0.00017899,2]
[393391385,1762575032149,-500.0,0.00017899,2]
[393391386,1762575032158,-500.0,0.00017899,2]
[393391387,1762575032168,-323.94336271,0.00017899,2]
[393391388,1762575032178,-512.12,0.00017899,2]
[393391389,1762575032188,-274.46276968,0.00017899,2]
[393391390,1762575032197,-500.0,0.00017899,2]
[393391391,1762575032210,-164.27669535,0.00017899,2]
[393391392,1762575032220,-154.12324818,0.00017899,2]
[393391393,1762575032231,-198.05750898,0.000179,2]
[393391394,1762575032240,-32042.62506274,0.000179,2]
[393391395,1762575032253,-38832.64710851,0.000179,2]
[393391396,1762575032265,-53044.85956965,0.000179,2]
[393391397,1762575032283,-733.47429309,0.000179,2]
[393391399,1762575037562,-251327.97283443,0.000179,2]
[393391400,1762575037612,-750.9541026,0.000179,2]
[393391421,1762575037721,-10248.43383718,0.000179,2]
[393391433,1762575040086,-1.7e-07,0.00017533,2]
[393391434,1762575040102,-867.64499979,0.00017533,2]
[393391458,1762575043040,-5061.66500004,0.00017533,2]
[393391459,1762575043050,-5215.38434678,0.000179,2]
[393391461,1762575043090,-965.14074203,0.000179,2]
[393391465,1762575045808,-7742.29460067,0.000179,2]
[393391728,1762575131704,500.0,0.00039049,120]
[393391729,1762575132420,500.0,0.00039049,120]
[393391730,1762575275399,288260.0,0.0003905,60]
[393391731,1762575427126,163.59629368,0.0003905,120]
[393391732,1762575519667,181.28,0.00013594,2]
[393391734,1762575749320,201.92,0.00024853,120]
[393391735,1762575767731,3500.0,0.0003905,120]
[393391736,1762575993524,150.0,0.0003905,30]
[393391737,1762576001941,500.0,0.0003905,120]
[393391738,1762576002226,500.0,0.0003905,120]
[393391739,1762576002460,500.0,0.0003905,120]
[393391740,1762576002698,500.0,0.0003905,120]
[393391741,1762576002927,500.0,0.0003905,120]
[393391742,1762576003165,500.0,0.0003905,120]
[393391743,1762576003412,500.0,0.0003905,120]
[393391744,1762576003662,500.0,0.0003905,120]
[393391745,1762576003902,500.0,0.0003905,120]
[393391746,1762576004141,500.0,0.0003905,120]
[393391747,1762576004377,500.0,0.0003905,120]
[393391748,1762576004973,500.0,0.0003905,120]
[393391749,1762576005213,500.0,0.0003905,120]
[393391750,1762576005467,500.0,0.0003905,120]
[393391751,1762576005908,500.0,0.0003905,120]
[393391752,1762576005962,500.0,0.0003905,120]
[393391753,1762576006523,500.0,0.0003905,120]
[393391754,1762576006754,452.684734,0.0003905,120]
[393391755,1762576020615,-283.23148193,0.000162,5]
[393391756,1762576023568,150.0,0.0003905,30]
[393391757,1762576023747,-464.39129279,0.000162,5]
[393391759,1762576070282,2458.92,0.00015,2]